bitfinex-derivatives/quotes_ETHF0:USTF0_20251024
["timestamp","ask_amount","ask_price","bid_price","bid_amount"]
[1761283785831,1.14368761,3969.0,3968.9,10.4209553]
[1761283786036,0.80208761,3969.0,3968.9,10.4209553]
[1761283787339,0.3399,3969.0,3968.9,10.4209553]
[1761283789347,0.3399,3969.0,3968.9,9.7061]
[1761283789547,0.3399,3969.0,3968.9,10.4209553]
[1761283792047,0.7842,3969.4,3969.3,0.7851]
[1761283792236,1.01486754,3969.4,3969.3,1.23848]
[1761283792436,1.01486754,3969.4,3969.3,0.7851]
[1761283794044,0.80206754,3969.4,3969.3,0.7851]
[1761283794345,0.57056754,3969.4,3969.3,0.7851]
[1761283794540,0.23066754,3969.4,3969.3,3.9929]
[1761283794745,0.3399,3969.8,3969.6,0.3436]
[1761283794951,0.3399,3969.8,3969.7,12.9139]
[1761283795150,0.00271899,3969.9,3969.8,0.79692]
[1761283795342,0.57325785,3969.9,3969.8,1.23842]
[1761283796145,0.23335785,3969.9,3969.8,1.9532753]
[1761283796546,0.57325785,3969.9,3969.8,1.9532753]
[1761283796748,0.57325785,3969.9,3969.8,1.23842]
[1761283797658,0.00271899,3969.9,3969.8,2.09613921]
[1761283798252,0.00271899,3969.9,3969.8,2.29851476]
[1761283800456,1.03386023,3971.0,3970.3,0.45327]
[1761283800457,0.3306,3970.4,3970.3,0.45327]
[1761283800756,0.56108057,3970.4,3970.3,13.34467]
[1761283801063,0.5442,3970.4,3970.3,13.34467]
[1761283801247,0.77464503,3970.4,3970.3,13.11887]
[1761283801443,0.77661448,3970.4,3970.3,3.6634791]
[1761283801647,0.4435,3969.6,3969.5,0.90364756]
[1761283801847,0.7741,3969.6,3969.5,8.92]
[1761283802044,0.9018,3969.5,3969.4,0.66457]
[1761283802250,0.9018,3969.5,3969.4,9.58457]
[1761283802755,0.9018,3969.5,3969.4,10.13918083]
[1761283804052,0.9018,3969.5,3969.4,0.00221083]
[1761283804258,0.9018,3969.5,3969.4,0.21341083]
[1761283804259,1.13230782,3969.5,3969.4,0.21341083]
[1761283806552,1.13230782,3969.5,3969.4,0.00221083]
[1761283806757,1.13230782,3969.5,3968.2,9.55547135]
[1761283806758,0.7741,3968.4,3968.3,0.2112]
[1761283806954,0.7741,3968.4,3968.3,0.7636]
[1761283807154,0.3306,3968.5,3968.4,0.5378]
[1761283807461,0.1277,3969.0,3968.4,0.5378]
[1761283807462,0.5442,3968.9,3968.8,0.7636]
[1761283807658,0.5442,3968.9,3968.8,0.76613072]
[1761283807960,0.5442,3968.9,3968.8,1.62384993]
[1761283808150,0.3306,3968.9,3968.8,1.62384993]
[1761283808352,0.5442,3968.9,3968.8,1.07144993]
[1761283808554,0.5442,3968.9,3968.8,1.62384993]
[1761283811358,0.3306,3969.2,3969.1,1.217]
[1761283813569,0.5442,3969.2,3969.1,1.217]
[1761283813768,0.7741,3969.2,3969.1,1.217]
[1761283814770,0.5442,3969.2,3969.1,1.217]
[1761283817079,0.5442,3969.2,3969.1,2.07471921]
[1761283817972,0.5442,3969.2,3969.1,10.99371921]
[1761283818177,0.5442,3969.2,3969.1,10.136]
[1761283818374,0.3306,3969.4,3969.3,0.2112]
[1761283818574,0.77976599,3969.4,3969.3,0.7636]
[1761283819077,1.00966599,3969.4,3969.3,0.7636]
[1761283819575,1.00966599,3969.4,3969.3,1.21697]
[1761283821183,0.77976599,3969.4,3969.3,1.21697]
[1761283821389,0.5442,3969.4,3969.3,1.21697]
[1761283821581,1.00968167,3969.4,3969.3,0.7636]
[1761283822780,1.00968167,3969.4,3969.3,9.6826]
[1761283822981,1.00968167,3969.4,3969.3,0.7636]
[1761283823173,1.00968167,3969.4,3969.3,9.6826]
[1761283824285,1.00968167,3969.4,3969.3,9.1302]
[1761283824588,1.00968167,3969.4,3969.3,8.919]
[1761283824983,1.00968167,3969.4,3969.3,9.1302]
[1761283825487,0.7741,3969.2,3969.1,0.2112]
[1761283825787,0.7741,3969.2,3969.1,9.1302]
[1761283826284,0.7741,3969.2,3969.1,0.2112]
[1761283826484,0.7741,3969.2,3969.1,9.1292]
[1761283827084,0.7741,3969.2,3969.1,9.355]
[1761283827284,0.7741,3969.2,3969.1,9.6816]
[1761283827983,0.7741,3969.2,3969.1,0.7636]
[1761283828188,0.7741,3969.2,3969.1,9.6816]
[1761283828589,0.7741,3969.2,3969.1,9.355]
[1761283828888,1.00981894,3969.2,3969.1,9.355]
[1761283829289,0.1364,3969.0,3968.9,3.2078]
[1761283829593,0.896,3969.0,3968.9,12.3561]
[1761283830687,0.896,3969.0,3968.9,3.4381]
[1761283830994,1.13193796,3969.0,3968.9,12.3561]
[1761283831184,1.13193796,3969.0,3968.9,12.6941]
[1761283831487,1.13193796,3969.0,3968.9,12.9236]
[1761283832389,1.13193796,3969.0,3968.9,12.5856]
[1761283832591,1.13193796,3969.0,3968.9,12.9236]
[1761283833095,1.13193796,3969.0,3968.9,9.7158]
[1761283833493,1.13193796,3969.0,3968.9,9.3778]
[1761283835097,1.13193796,3969.0,3968.9,0.4598]
[1761283835297,1.13193796,3969.0,3968.9,9.3778]
[1761283835690,1.13193796,3969.0,3968.9,9.7158]
[1761283835992,1.13193796,3969.0,3968.9,9.3778]
[1761283836496,1.13193796,3969.0,3968.9,0.4598]
[1761283836700,1.13193796,3969.0,3968.9,9.3778]
[1761283837407,1.13193796,3969.0,3968.9,0.4598]
[1761283838102,0.7596,3968.9,3968.8,0.00253072]
[1761283838304,1.89993774,3968.9,3968.8,0.00253072]
[1761283838494,2.35238532,3968.9,3968.8,0.00253072]
[1761283839298,0.99553796,3968.9,3968.8,0.00253072]
[1761283840495,0.896,3968.0,3967.9,10.16934]
[1761283840694,1.13193796,3968.0,3967.9,10.16934]
[1761283841103,0.896,3968.0,3967.9,9.7158]
[1761283841601,0.896,3968.0,3967.9,9.71855393]
[1761283841812,1.13178215,3968.0,3967.9,0.46255393]
[1761283842004,1.13178215,3968.0,3967.9,0.23305393]
[1761283842209,1.13178215,3968.0,3967.9,0.00275393]
[1761283844311,1.13178215,3968.0,3967.9,0.23305393]
[1761283844698,1.13178215,3968.0,3966.8,3.2078]
[1761283844699,0.3188,3967.3,3966.8,3.2078]
[1761283844908,0.3188,3966.4,3966.3,3.2078]
[1761283845208,0.3188,3966.4,3966.2,0.67792142]
[1761283845209,0.7596,3966.3,3966.2,0.2303]
[1761283845411,1.34976,3966.0,3965.9,3.2078]
[1761283845599,0.7596,3965.6,3965.5,3.4381]
[1761283845906,0.5393,3965.6,3965.5,12.92580684]
[1761283846812,0.3188,3965.6,3965.5,12.92580684]
[1761283847412,0.5393,3965.9,3965.8,0.5675]
[1761283847611,0.13869194,3966.0,3965.9,0.7978]
[1761283847612,0.00229194,3966.0,3965.9,0.7978]
[1761283848210,0.32109194,3966.0,3965.9,0.7978]
[1761283848514,0.32109194,3966.0,3965.9,9.7168]
[1761283848713,0.54159194,3966.0,3965.9,9.7168]
[1761283849607,0.89829194,3966.0,3965.9,9.3788]
[1761283849808,0.89829194,3966.0,3965.9,8.919]
[1761283850010,0.3188,3965.9,3965.5,4.98133605]
[1761283850211,0.7596,3965.6,3965.5,4.86552605]
[1761283850512,0.7596,3965.6,3965.5,3.44030684]
[1761283850716,1.2134,3965.6,3965.5,8.92220684]
[1761283851117,0.7596,3965.6,3965.5,9.38200684]
[1761283851415,0.7596,3965.6,3965.5,9.72000684]
[1761283852116,0.7596,3965.6,3965.5,9.72100684]
[1761283853714,0.7596,3965.6,3965.5,0.80000684]
[1761283854016,0.5393,3965.6,3965.5,9.72100684]
[1761283854215,0.3188,3965.6,3965.5,9.72100684]
[1761283854617,0.5393,3965.6,3965.5,9.72100684]
[1761283856816,0.5393,3965.6,3965.5,10.43730393]
[1761283858821,0.00229194,3966.0,3965.9,0.7978]
[1761283859122,0.00229194,3966.0,3965.9,14.36019418]
[1761283859418,0.00229194,3966.0,3965.9,4.72189709]
[1761283859619,0.56949194,3966.0,3965.9,13.64389709]
[1761283860121,0.00229194,3966.0,3965.9,13.64389709]
[1761283863617,0.00229194,3966.0,3965.9,4.72189709]
[1761283863819,0.00229194,3966.0,3965.9,13.64389709]
[1761283867617,2.24810109,3969.2,3965.9,13.64389709]
[1761283867618,0.3354,3967.4,3966.8,0.3432]
[1761283867824,3.775,3967.5,3967.4,0.7821]
[1761283868126,4.3612657,3967.5,3967.4,9.7041]
[1761283868425,4.3612657,3967.5,3967.4,9.3609]
[1761283868622,4.36321388,3967.5,3967.4,9.7041]
[1761283870121,4.36321388,3967.5,3967.4,0.217]
[1761283870326,0.7847,3967.1,3967.0,0.7821]
[1761283870625,0.7847,3967.1,3967.0,9.7031]
[1761283871028,0.7847,3967.1,3967.0,10.41939709]
[1761283871228,0.3354,3967.1,3967.0,10.41939709]
[1761283871421,0.3354,3967.3,3967.2,0.4389]
[1761283871627,0.80145369,3967.3,3967.2,0.7821]
[1761283872021,0.56965369,3967.3,3967.2,0.7821]
[1761283872220,0.23425369,3967.3,3967.2,0.7821]
[1761283872428,0.56965369,3967.3,3967.2,0.7821]
[1761283872623,0.80145369,3967.3,3967.2,0.7821]
[1761283874429,0.23425369,3967.3,3967.2,0.7821]
[1761283874824,0.56965369,3967.3,3967.2,0.7821]
[1761283876133,0.3354,3967.3,3967.2,0.7821]
[1761283878235,0.5672,3967.3,3967.2,0.7821]
[1761283878432,0.7847,3967.3,3967.2,0.7821]
[1761283878631,0.7847,3967.1,3967.0,0.217]
[1761283878824,0.7847,3967.1,3967.0,9.137]
[1761283879836,0.7847,3967.1,3967.0,9.3589]
[1761283880030,0.7847,3967.1,3967.0,9.3579]
[1761283880434,0.7847,3967.1,3967.0,0.4389]
[1761283880634,0.7847,3967.1,3967.0,9.3579]
[1761283880837,0.7847,3967.1,3967.0,0.4389]
[1761283881025,0.7847,3967.1,3967.0,9.3579]
[1761283881231,0.7847,3967.1,3967.0,0.4389]
[1761283881535,0.7847,3967.1,3967.0,9.3579]
[1761283882937,1.01884465,3967.1,3967.0,9.3579]
[1761283883337,1.01884465,3967.1,3967.0,9.7011]
[1761283884334,1.01884465,3967.1,3967.0,12.9089]
[1761283884536,1.01884465,3967.1,3967.0,9.3579]
[1761283884734,1.01884465,3967.1,3967.0,9.7011]
[1761283885534,1.01884465,3967.1,3967.0,0.7821]
[1761283885738,0.23414465,3967.1,3967.0,9.8175]
[1761283888049,0.78464465,3967.1,3967.0,9.7011]
[1761283888645,0.55284465,3967.1,3967.0,9.7011]
[1761283889747,0.23414465,3967.1,3967.0,12.9089]
[1761283890439,0.23414465,3967.1,3967.0,13.0252]
[1761283894145,0.23414465,3967.1,3967.0,0.8984]
[1761283894344,0.55834465,3967.1,3967.0,0.8984]
[1761283894545,0.55834465,3967.1,3967.0,9.7001]
[1761283894735,0.78614465,3967.1,3967.0,9.7001]
[1761283896842,1.01554465,3967.1,3967.0,9.7001]
[1761283897240,1.01554465,3967.1,3967.0,10.37802142]
[1761283897439,0.78614465,3967.1,3967.0,1.46002142]
[1761283897640,0.78614465,3967.1,3967.0,9.6991]
[1761283898248,0.78614465,3967.1,3967.0,0.7821]
[1761283898647,1.01554465,3967.1,3967.0,9.6991]
[1761283899949,1.01554465,3967.1,3967.0,0.4389]
[1761283900146,1.01554465,3967.1,3967.0,9.134]
[1761283901239,1.01554465,3967.1,3966.9,0.67792142]
[1761283901240,0.9102,3967.0,3966.9,0.90832142]
[1761283901445,1.14434465,3967.0,3966.9,9.1474]
[1761283901647,1.14434465,3967.0,3966.9,0.2304]
[1761283901849,1.14434465,3967.0,3966.9,9.1474]
[1761283903448,1.14434465,3967.0,3966.9,0.2304]
[1761283903753,1.14434465,3967.0,3966.9,9.1474]
[1761283903947,0.68714465,3967.0,3966.9,9.6862]
[1761283904150,3.16401137,3969.4,3966.9,9.6862]
[1761283904151,1.10279999,3968.0,3967.4,1.13397]
[1761283904356,0.1288,3969.0,3967.9,4.64039418]
[1761283904650,0.1288,3969.0,3968.9,3.92409709]
[1761283904846,0.1288,3969.0,3968.9,12.89309709]
[1761283905354,0.1320072,3969.0,3968.9,13.57153091]
[1761283905542,0.1320072,3969.0,3968.9,12.89562478]
[1761283905747,0.1320072,3969.0,3968.9,3.21032769]
[1761283905948,0.1320072,3969.0,3968.9,3.92662478]
[1761283906148,0.1320072,3969.0,3968.9,12.89962478]
[1761283906347,0.4562072,3969.0,3968.9,13.57463447]
[1761283906745,0.4562072,3969.0,3968.9,13.77203192]
[1761283907151,0.4562072,3969.0,3968.9,3.21032769]
[1761283907352,0.9134072,3969.0,3968.9,0.00252769]
[1761283907553,0.9134072,3969.0,3968.9,8.97352769]
[1761283907945,0.6840072,3969.0,3968.9,8.97352769]
[1761283911059,0.6840072,3969.0,3968.9,9.68982478]
[1761283912460,0.4562072,3969.0,3968.9,12.89762478]
[1761283913955,0.9134072,3969.0,3968.9,12.17832769]
[1761283914355,0.6840072,3969.0,3968.9,12.17832769]
[1761283915062,0.6840072,3969.0,3968.9,12.83399202]
[1761283916162,0.6840072,3969.0,3968.9,12.83199202]
[1761283917362,0.6840072,3969.0,3968.9,12.17632769]
[1761283917660,0.6840072,3969.0,3968.9,12.83198088]
[1761283917661,0.4562072,3969.0,3968.9,12.83198088]
[1761283917864,0.1288,3969.5,3968.9,12.83198088]
[1761283918069,0.1288,3969.5,3969.4,0.71629709]
[1761283918260,0.1288,3969.5,3969.4,9.67929709]
[1761283918769,0.13207793,3969.5,3969.4,8.963]
[1761283919363,0.13207793,3969.5,3969.3,0.45338]
[1761283919563,0.13207793,3969.5,3969.4,8.961]
[1761283919764,0.46997793,3969.5,3969.4,8.961]
[1761283922576,0.3379,3969.4,3969.3,11.86118]
[1761283922879,0.3379,3969.4,3969.3,20.82018]
[1761283923267,0.3379,3969.4,3969.3,21.47544198]
[1761283925274,0.13207793,3969.5,3969.3,21.47544198]
[1761283925275,0.00327793,3969.5,3969.3,21.47544198]
[1761283925469,0.47577793,3969.5,3969.4,0.65526198]
[1761283927768,0.13787793,3969.5,3969.4,0.65526198]
[1761283927971,0.47577793,3969.5,3969.4,0.65526198]
[1761283929762,0.13787793,3969.5,3969.4,1.33027167]
[1761283930164,0.13787793,3969.5,3969.4,0.65526198]
[1761283930373,0.47577793,3969.5,3969.4,0.65526198]
[1761283930781,0.47577793,3969.5,3969.4,1.32912022]
[1761283931176,0.47577793,3969.5,3969.4,0.65526198]
[1761283931679,0.47577793,3969.5,3969.4,9.60526198]
[1761283932081,0.47577793,3969.5,3969.4,0.65526198]
[1761283932280,0.47577793,3969.5,3969.4,10.505431]
[1761283933279,0.47577793,3969.5,3969.4,9.60426198]
[1761283934283,0.47577793,3969.5,3969.4,9.60026198]
[1761283937771,0.3379,3969.8,3969.7,0.45333]
[1761283937978,0.1288,3971.0,3970.9,0.4532]
[1761283938271,0.5618,3971.0,3970.9,0.65526198]
[1761283938480,0.5618,3971.0,3970.8,8.941]
[1761283938675,0.5618,3971.0,3970.9,0.65856007]
[1761283938984,0.56458633,3971.0,3970.9,0.65856007]
[1761283939179,1.01778633,3971.0,3970.9,0.65856007]
[1761283939985,1.35568633,3971.0,3970.9,0.65856007]
[1761283941285,0.90248633,3971.0,3970.9,0.65856007]
[1761283941979,0.90248633,3971.0,3970.9,9.59556007]
[1761283942480,0.1346,3971.5,3971.4,0.88814]
[1761283942684,0.5676,3972.0,3971.9,0.217]
[1761283942884,0.5676,3972.0,3971.9,8.938]
[1761283943282,0.5676,3972.0,3971.9,9.60808]
[1761283943484,0.56976721,3972.0,3971.9,9.61069994]
[1761283944081,0.56976721,3972.0,3971.9,0.00261994]
[1761283944383,0.1346,3971.5,3970.6,0.67664278]
[1761283944582,0.7709,3970.8,3970.7,0.87542678]
[1761283944783,5.7709,3970.8,3970.7,0.217]
[1761283944985,5.7709,3970.8,3970.7,0.435]
[1761283944986,5.99065376,3970.8,3970.7,0.435]
[1761283945282,5.99065376,3970.8,3970.7,0.22119704]
[1761283945489,5.99065376,3970.8,3970.7,0.00319704]
[1761283947496,5.99072613,3970.8,3970.7,0.00319704]
[1761283948885,0.7799,3969.9,3969.8,0.89934278]
[1761283949082,0.7799,3969.9,3969.8,10.49419492]
[1761283949385,0.7799,3969.9,3969.8,1.56019492]
[1761283949587,0.7799,3969.9,3969.8,10.71139492]
[1761283949784,0.7799,3969.9,3969.8,10.7146537]
[1761283950388,0.7799,3969.9,3969.8,10.03801092]
[1761283950592,0.3429,3970.0,3969.9,1.14421]
[1761283950896,0.3429,3970.0,3969.9,2.47616403]
[1761283951094,0.6954,3970.0,3969.9,2.47616403]
[1761283951690,0.6954,3970.0,3969.9,2.23226403]
[1761283952794,0.9242,3970.0,3969.9,2.23226403]
[1761283955394,0.7866,3970.4,3970.3,0.447]
[1761283955583,0.77787356,3970.4,3970.3,10.27465214]
[1761283955788,1.00667356,3970.4,3970.3,10.03075214]
[1761283956596,1.00667356,3970.4,3970.3,0.65475214]
[1761283956898,1.00667356,3970.4,3970.3,8.93]
[1761283957298,1.00669473,3970.4,3970.3,8.93]
[1761283957688,1.00669473,3970.4,3970.3,9.1588]
[1761283957898,1.00669473,3970.4,3970.3,9.81391641]
[1761283958299,1.00669473,3970.4,3970.0,0.45329]
[1761283958499,0.7866,3970.2,3970.1,9.81393983]
[1761283958998,0.7866,3970.2,3970.1,9.81593983]
[1761283959697,0.7866,3970.2,3970.1,10.03413983]
[1761283959902,0.7866,3970.2,3970.1,10.27803983]
[1761283960197,0.7866,3970.2,3970.1,10.03413983]
[1761283960793,0.5578,3970.4,3970.3,0.6909]
[1761283960993,0.77787981,3970.4,3970.3,1.10213983]
[1761283961185,1.00667981,3970.4,3970.3,1.10213983]
[1761283962598,1.00667981,3970.4,3970.3,10.03213983]
[1761283962801,0.56297981,3970.4,3970.3,10.27603983]
[1761283963298,0.77787981,3970.4,3970.3,10.27603983]
[1761283965691,1.00667981,3970.4,3970.3,0.65513983]
[1761283965890,0.66377981,3970.4,3970.3,8.93]
[1761283966302,0.66377981,3970.4,3970.3,8.929]
[1761283966604,0.3429,3970.3,3970.0,3.4366]
[1761283966806,1.00667981,3970.2,3970.1,9.58396516]
[1761283967106,1.00667981,3970.2,3970.1,9.81276516]
[1761283968207,1.00667981,3970.2,3970.1,0.88376516]
[1761283968403,1.01007323,3970.2,3970.1,9.81276516]
[1761283970504,1.01007323,3970.2,3970.1,0.65496516]
[1761283973610,6.86798758,3970.2,3970.1,0.10425943]
[1761283973809,0.9242,3969.5,3968.9,1.80575796]
[1761283974108,0.7866,3969.3,3969.2,0.2288]
[1761283974301,1.01028909,3969.3,3969.2,0.447]
[1761283974696,1.01028909,3969.3,3969.2,0.4494605]
[1761283976110,1.01028909,3969.3,3969.2,0.6933605]
[1761283977006,1.01028909,3969.3,3969.2,0.0024605]
[1761283977210,1.01028909,3969.3,3969.2,0.2312605]
[1761283978113,1.01028909,3969.3,3969.2,0.6933605]
[1761283978606,0.3429,3969.8,3969.5,0.447]
[1761283978812,0.3429,3969.8,3969.7,0.447]
[1761283979004,0.5664853,3969.8,3969.7,0.447]
[1761283979205,0.5664853,3969.8,3969.7,0.6913]
[1761283979406,0.1376,3970.0,3969.9,0.6867]
[1761283979711,0.3494,3970.0,3969.9,1.40153731]
[1761283980012,0.6646,3970.0,3969.9,1.40153731]
[1761283981118,0.6646,3970.0,3969.9,1.15723731]
[1761283982317,0.6646,3970.0,3969.9,1.40153731]
[1761283982716,0.8811,3970.0,3969.9,1.15723731]
[1761283983119,0.3152,3970.0,3969.9,1.40153731]
[1761283983314,0.3152,3970.3,3970.0,0.4533]
[1761283983519,0.3152,3970.3,3970.2,0.6867]
[1761283983711,0.75055385,3970.3,3970.2,0.6867]
[1761283983912,0.96705385,3970.3,3970.2,0.4424]
[1761283986323,0.75055385,3970.3,3970.2,2.04578791]
[1761283987029,1.35766748,3971.0,3970.2,1.80148791]
[1761283987328,1.35766748,3971.7,3970.9,0.71483731]
[1761283987618,0.00216721,3972.0,3971.8,0.45309]
[1761283987827,0.00216721,3972.0,3971.9,10.37408791]
[1761283988022,0.45586721,3972.0,3971.9,13.58188791]
[1761283988224,0.00216721,3972.0,3971.9,14.29672522]
[1761283988530,0.00216721,3972.0,3971.9,19.502638]
[1761283989022,0.00216721,3972.0,3971.9,17.97280069]
[1761283989228,0.76768,3972.4,3971.9,21.97719475]
[1761283989416,0.3152,3972.3,3972.2,0.71483731]
[1761283989613,0.3152,3972.3,3972.2,1.80925296]
[1761283989823,0.3152,3972.3,3972.2,10.82025296]
[1761283990227,0.31804395,3972.3,3972.2,10.82312406]
[1761283990423,0.00284395,3972.3,3972.2,10.82312406]
[1761283991328,0.00284395,3972.3,3972.2,10.82706535]
[1761283992327,0.00284395,3972.3,3972.2,10.18175841]
[1761283992536,0.31804395,3972.3,3972.2,10.18175841]
[1761283993431,0.52984395,3972.3,3972.2,0.4559211]
[1761283993631,0.52984395,3972.3,3972.2,10.17475841]
[1761283993940,0.00284395,3972.3,3972.2,10.81886591]
[1761283994442,0.00284395,3972.3,3972.2,10.17475841]
[1761283995336,0.00284395,3972.3,3972.2,10.17175841]
[1761283997133,0.76768,3972.4,3972.2,10.17175841]
[1761283997731,1.08288,3972.4,3972.2,10.17175841]
[1761283998238,1.08475156,3972.4,3972.2,10.17175841]
[1761283998633,1.08475156,3972.4,3972.2,1.17075841]
[1761283998830,0.022,3972.8,3972.3,12.25570032]
[1761283999137,0.022,3972.8,3972.7,3.92263731]
[1761283999338,0.022,3972.8,3972.7,13.37362731]
[1761284000136,0.02412928,3972.8,3972.7,13.37362731]
[1761284000540,0.02412928,3972.8,3972.7,21.57362731]
[1761284003240,0.3152,3973.4,3973.3,0.45292]
[1761284003432,0.3152,3973.4,3973.3,9.45092]
[1761284004240,0.31724734,3973.4,3973.3,9.45092]
[1761284004440,0.31724734,3973.4,3973.3,10.16575731]
[1761284004639,0.31724734,3973.4,3973.3,9.45092]
[1761284008033,0.52904734,3973.4,3973.3,9.45092]
[1761284009640,0.52904734,3973.4,3973.3,12.65872]
[1761284010041,0.31724734,3973.4,3973.3,12.65872]
[1761284012549,0.76344734,3973.4,3973.3,13.35855731]
[1761284012949,0.76344734,3973.4,3973.3,12.64372]
[1761284013143,0.3262,3973.3,3973.1,0.71483731]
[1761284013349,0.7724,3973.2,3972.9,0.45296]
[1761284013543,0.5472,3972.9,3972.7,11.86078]
[1761284013743,0.5472,3972.9,3972.8,0.65394256]
[1761284014156,0.4462,3972.9,3972.3,3.2078]
[1761284014345,0.3262,3972.4,3972.3,3.66083]
[1761284014651,0.7724,3972.4,3972.3,12.06263771]
[1761284014844,0.7724,3972.4,3972.3,21.75747502]
[1761284015045,0.7724,3972.4,3972.3,12.77747502]
[1761284015244,0.7724,3972.4,3972.3,21.75647502]
[1761284016458,0.7724,3972.4,3972.3,12.77747502]
[1761284016759,0.7724,3972.4,3972.3,21.75747502]
[1761284017254,0.7724,3972.4,3972.3,12.77747502]
[1761284017746,0.7724,3972.4,3972.3,21.75447502]
[1761284017943,0.5472,3972.4,3972.3,21.75447502]
[1761284018143,0.5472,3972.4,3972.3,13.55447502]
[1761284018546,0.5472,3972.4,3972.3,4.57747502]
[1761284018750,0.5472,3972.4,3972.3,13.55447502]
[1761284018950,0.5472,3972.4,3972.3,4.57747502]
[1761284019143,0.7724,3972.4,3972.3,13.55247502]
[1761284019549,0.7724,3972.4,3972.3,4.57747502]
[1761284019753,0.7724,3972.4,3972.3,13.55247502]
[1761284020355,0.7724,3972.4,3972.3,13.55147502]
[1761284022852,1.48723731,3972.4,3972.3,0.65483771]
[1761284023052,0.4462,3971.9,3971.8,4.10787789]
[1761284023252,0.349,3971.5,3971.4,8.971]
[1761284023553,0.9004,3971.5,3971.4,8.971]
[1761284024151,0.9004,3971.5,3971.4,8.9729237]
[1761284025366,0.9004,3971.5,3971.4,0.0019237]
[1761284025865,0.9004,3971.5,3971.4,8.9729237]
[1761284026055,1.61523731,3971.5,3971.4,0.0019237]
[1761284026272,6.61523731,3971.5,3971.4,0.0019237]
[1761284026458,9.82303731,3971.5,3971.4,0.0019237]
[1761284026656,0.4542,3970.5,3970.2,0.90007789]
[1761284026963,0.3262,3970.3,3970.2,0.45328]
[1761284027161,0.3262,3970.3,3970.2,10.13811731]
[1761284027752,0.32869045,3970.3,3970.2,10.14101036]
[1761284029155,0.71483731,3971.3,3970.2,10.14101036]
[1761284029156,0.3262,3971.3,3971.2,0.45316]
[1761284029361,0.4542,3971.5,3971.4,0.45314]
[1761284030156,0.13054325,3971.5,3971.4,0.45314]
[1761284030353,0.00254325,3971.5,3971.4,0.45314]
[1761284030966,0.32874325,3971.5,3971.4,0.45314]
[1761284032266,0.00254325,3971.5,3971.4,0.45314]
[1761284032758,0.00254325,3971.5,3971.4,9.42714]
[1761284033661,0.00254325,3971.5,3971.4,17.62714]
[1761284033863,0.00254325,3971.5,3971.4,22.62714]
[1761284034261,0.3262,3972.3,3972.2,0.45305]
[1761284034458,0.3262,3972.3,3972.2,10.14088731]
[1761284034859,0.128,3972.5,3972.4,0.45303]
[1761284034860,0.9004,3972.5,3972.4,0.45303]
[1761284035262,0.90220925,3972.5,3972.4,0.45303]
[1761284036062,0.67700925,3972.5,3972.4,0.45303]
[1761284036262,0.45600925,3972.5,3972.4,1.09553066]
[1761284037166,0.00180925,3972.5,3972.4,1.09553066]
[1761284037466,0.00180925,3972.5,3972.4,1.76756811]
[1761284039568,0.44750925,3972.5,3972.4,1.76756811]
[1761284039768,0.44750925,3972.5,3972.4,10.74056811]
[1761284040271,0.44750925,3972.5,3972.4,11.45440542]
[1761284040665,0.44750925,3972.5,3972.4,11.59598136]
[1761284041067,0.44750925,3972.5,3972.4,2.62398136]
[1761284041274,0.44750925,3972.5,3972.4,11.59598136]
[1761284041975,0.12850925,3972.5,3972.4,11.59598136]
[1761284043076,0.00180925,3972.5,3972.4,11.59598136]
[1761284046074,0.00180925,3972.5,3972.4,2.62398136]
[1761284046266,0.44750925,3972.5,3972.4,11.58798136]
[1761284047776,0.00180925,3972.5,3972.4,2.62398136]
[1761284048074,0.319,3973.2,3973.1,0.45295]
[1761284048274,0.319,3973.2,3973.1,13.47816325]
[1761284048779,0.7516,3973.2,3973.1,13.47816325]
[1761284049177,0.75396294,3973.2,3973.1,13.4802322]
[1761284050169,0.75396294,3973.2,3973.1,4.5192322]
[1761284050477,0.75396294,3973.2,3973.1,13.4842322]
[1761284051966,0.75396294,3973.2,3973.1,13.4832322]
[1761284053274,0.75396294,3973.2,3973.1,12.62381895]
[1761284053577,0.75396294,3973.2,3973.1,13.4802322]
[1761284053771,0.53876294,3973.2,3973.1,13.4802322]
[1761284053971,0.32136294,3973.2,3973.1,13.4802322]
[1761284054169,0.447,3973.5,3973.4,0.45291]
[1761284054371,3.2078,3974.2,3973.9,0.45286]
[1761284054572,0.1267,3974.5,3973.9,18.46827325]
[1761284054778,0.4457,3974.5,3974.4,0.4528]
[1761284054980,0.4457,3974.5,3974.4,10.26821325]
[1761284055173,0.44831773,3974.5,3974.4,10.26821325]
[1761284056573,0.00261773,3974.5,3974.4,10.26821325]
[1761284056875,0.00261773,3974.5,3974.4,10.46720206]
[1761284058375,0.319,3974.8,3974.4,10.46720206]
[1761284058376,0.319,3974.8,3974.4,11.5115305]
[1761284058577,0.1267,3975.0,3974.9,0.45274]
[1761284058876,0.1267,3975.0,3974.9,10.04636396]
[1761284059080,0.4457,3975.0,3974.9,10.04636396]
[1761284059480,0.44785692,3975.0,3974.9,10.04536396]
[1761284059675,0.00215692,3975.0,3974.9,10.04536396]
[1761284059874,0.44785692,3975.0,3974.9,1.09336396]
[1761284060081,0.66525692,3975.0,3974.9,10.04536396]
[1761284060276,0.66525692,3975.0,3974.9,18.24536396]
[1761284060481,0.44785692,3975.0,3974.9,18.24536396]
[1761284060680,0.44785692,3975.0,3974.9,9.29336396]
[1761284060880,0.66525692,3975.0,3974.9,18.24536396]
[1761284061081,0.66525692,3975.0,3974.9,9.29336396]
[1761284061478,0.88045692,3975.0,3974.9,9.29336396]
[1761284061682,0.88045692,3975.0,3974.9,18.24436396]
[1761284061980,0.88045692,3975.0,3974.9,9.29336396]
[1761284062178,0.88045692,3975.0,3974.9,18.24436396]
[1761284062885,0.88045692,3975.0,3974.9,10.04436396]
[1761284063586,0.66525692,3975.0,3974.9,10.04436396]
[1761284064486,0.44785692,3975.0,3974.9,10.04436396]
[1761284065487,0.66525692,3975.0,3974.9,10.04436396]
[1761284065989,0.00215692,3975.0,3974.9,13.2772329]
[1761284066186,0.88045692,3975.0,3974.9,14.13164615]
[1761284066381,0.88045692,3975.0,3974.9,10.90177721]
[1761284066579,0.88045692,3975.0,3974.9,19.10177721]
[1761284066782,0.8783,3974.5,3974.0,0.67157705]
[1761284066981,0.7516,3973.9,3973.8,3.2078]
[1761284067179,0.1267,3974.0,3973.1,1.3114222]
[1761284067180,0.2174,3973.4,3973.1,1.3114222]